[Event "Late-Titled-Tuesday-Blitz-May-07-2024"]
[Site "Chess.com"]
[Date "2024.05.07"]
[Round "6"]
[White "Pachonpower"]
[Black "dealshark"]
[Result "1-0"]
[WhiteElo "2388"]
[BlackElo "2530"]
[TimeControl "180+1"]
[EndTime "15:07:51 PDT"]
[Termination "Pachonpower won by checkmate"]

1. d4 {[%clk 0:03:00.9]} 1... d5 {[%clk 0:03:00.2]} 2. Nf3 {[%clk 0:03:00.2]}
2... e6 {[%clk 0:03:01.1]} 3. e3 {[%clk 0:03:00.1]} 3... c5 {[%clk 0:03:01.5]}
4. c3 {[%clk 0:03:00.3]} 4... Nc6 {[%clk 0:03:01.4]} 5. Nbd2 {[%clk 0:03:00.8]}
5... Nf6 {[%clk 0:03:01.5]} 6. Bd3 {[%clk 0:03:00.9]} 6... Be7 {[%clk
0:03:01.6]} 7. O-O {[%clk 0:03:01.2]} 7... O-O {[%clk 0:03:01.7]} 8. Qe2 {[%clk
0:03:01.6]} 8... b6 {[%clk 0:03:01.4]} 9. b3 {[%clk 0:03:01.5]} 9... Bb7 {[%clk
0:03:01.4]} 10. Bb2 {[%clk 0:03:01.9]} 10... Rc8 {[%clk 0:03:01.9]} 11. Rac1
{[%clk 0:03:01.9]} 11... h6 {[%clk 0:03:01.4]} 12. c4 {[%clk 0:03:02]} 12...
dxc4 {[%clk 0:02:58.6]} 13. Nxc4 {[%clk 0:03:01.7]} 13... cxd4 {[%clk
0:02:57.1]} 14. exd4 {[%clk 0:03:01.7]} 14... Nd5 {[%clk 0:02:54]} 15. Qe4
{[%clk 0:02:56.8]} 15... Nf6 {[%clk 0:02:54]} 16. Qh4 {[%clk 0:02:54.7]} 16...
Nb4 {[%clk 0:02:52.1]} 17. Bb1 {[%clk 0:02:53.6]} 17... Bxf3 {[%clk 0:02:49.1]}
18. gxf3 {[%clk 0:02:53.5]} 18... Qd5 {[%clk 0:02:47.5]} 19. Ne5 {[%clk
0:02:46.8]} 19... Rxc1 {[%clk 0:02:35.1]} 20. Rxc1 {[%clk 0:02:45.4]} 20... Bd6
{[%clk 0:02:14.1]} 21. Kg2 {[%clk 0:02:09.9]} 21... Qb7 {[%clk 0:01:49.5]} 22.
a3 {[%clk 0:01:59.5]} 22... Nbd5 {[%clk 0:01:49.2]} 23. Be4 {[%clk 0:01:48.4]}
23... Rc8 {[%clk 0:01:36.5]} 24. Nc4 {[%clk 0:01:41.1]} 24... Bf4 {[%clk
0:01:26.6]} 25. Rg1 {[%clk 0:01:39.6]} 25... Bg5 {[%clk 0:01:24.8]} 26. Qg3
{[%clk 0:01:26]} 26... Qc7 {[%clk 0:01:19.9]} 27. Qxc7 {[%clk 0:01:17.7]} 27...
Rxc7 {[%clk 0:01:18.8]} 28. Kf1 {[%clk 0:01:08.5]} 28... Nf4 {[%clk 0:01:10.2]}
29. a4 {[%clk 0:00:59]} 29... Kf8 {[%clk 0:01:04.5]} 30. Ba3+ {[%clk 0:00:57.7]}
30... Kg8 {[%clk 0:01:03.8]} 31. Bd6 {[%clk 0:00:57.8]} 31... Rd7 {[%clk
0:01:00.4]} 32. h4 {[%clk 0:00:57.7]} 32... Nh3 {[%clk 0:00:47.8]} 33. hxg5
{[%clk 0:00:55.2]} 33... Nxg1 {[%clk 0:00:47.6]} 34. gxf6 {[%clk 0:00:53.6]}
34... gxf6 {[%clk 0:00:47.3]} 35. Kxg1 {[%clk 0:00:52.1]} 35... f5 {[%clk
0:00:46.1]} 36. Bc6 {[%clk 0:00:49.8]} 36... Rd8 {[%clk 0:00:46.6]} 37. Be5
{[%clk 0:00:49.4]} 37... Kf8 {[%clk 0:00:45.5]} 38. Nd6 {[%clk 0:00:48.3]} 38...
Ke7 {[%clk 0:00:43.9]} 39. Nb7 {[%clk 0:00:38.2]} 39... Rg8+ {[%clk 0:00:43.7]}
40. Kf1 {[%clk 0:00:38.3]} 40... f6 {[%clk 0:00:44.3]} 41. Bd6+ {[%clk
0:00:36.7]} 41... Kf7 {[%clk 0:00:44]} 42. b4 {[%clk 0:00:37.3]} 42... h5 {[%clk
0:00:43.4]} 43. d5 {[%clk 0:00:37.1]} 43... h4 {[%clk 0:00:42.6]} 44. a5 {[%clk
0:00:31.1]} 44... h3 {[%clk 0:00:42]} 45. Bh2 {[%clk 0:00:15.4]} 45... Rg2
{[%clk 0:00:38.6]} 46. Bg3 {[%clk 0:00:15.9]} 46... e5 {[%clk 0:00:34]} 47. d6
{[%clk 0:00:13.7]} 47... f4 {[%clk 0:00:31.1]} 48. d7 {[%clk 0:00:14.1]} 48...
fxg3 {[%clk 0:00:30.7]} 49. fxg3 {[%clk 0:00:14.6]} 49... Rd2 {[%clk 0:00:28.6]}
50. d8=Q {[%clk 0:00:12.9]} 50... h2 {[%clk 0:00:27.2]} 51. Qxd2 {[%clk
0:00:08.1]} 51... h1=Q+ {[%clk 0:00:27.1]} 52. Ke2 {[%clk 0:00:08.8]} 52... Qh2+
{[%clk 0:00:25.5]} 53. Kd3 {[%clk 0:00:09.2]} 53... Qxg3 {[%clk 0:00:24.8]} 54.
Bd5+ {[%clk 0:00:09.6]} 54... Kg6 {[%clk 0:00:24.7]} 55. Qe3 {[%clk 0:00:09.8]}
55... f5 {[%clk 0:00:21.8]} 56. Nd6 {[%clk 0:00:09.1]} 56... Qg2 {[%clk
0:00:15.3]} 57. Bf7+ {[%clk 0:00:06.1]} 57... Kf6 {[%clk 0:00:14.3]} 58. Bb3
{[%clk 0:00:05.2]} 58... Qf1+ {[%clk 0:00:14.8]} 59. Qe2 {[%clk 0:00:05]} 59...
Qb1+ {[%clk 0:00:15.5]} 60. Qc2 {[%clk 0:00:04]} 60... Qf1+ {[%clk 0:00:15.7]}
61. Kc3 {[%clk 0:00:04.7]} 61... Qxf3+ {[%clk 0:00:15.3]} 62. Kb2 {[%clk
0:00:04.9]} 62... Qc6 {[%clk 0:00:14.4]} 63. Qxc6 {[%clk 0:00:04.6]} 63... f4
{[%clk 0:00:14.9]} 64. Qe4 {[%clk 0:00:04.5]} 64... f3 {[%clk 0:00:13.2]} 65.
Qf5+ {[%clk 0:00:04.6]} 65... Ke7 {[%clk 0:00:14.1]} 66. Qxe5+ {[%clk
0:00:04.8]} 66... Kd7 {[%clk 0:00:14.7]} 67. Ba4+ {[%clk 0:00:05.1]} 67... Kc7
{[%clk 0:00:15.6]} 68. Nb5+ {[%clk 0:00:05.1]} 68... Kb7 {[%clk 0:00:15.5]} 69.
Qd5+ {[%clk 0:00:04.7]} 69... Kc8 {[%clk 0:00:15.9]} 70. Qc6+ {[%clk 0:00:04.7]}
70... Kd8 {[%clk 0:00:16.5]} 71. Nd6 {[%clk 0:00:04.5]} 71... Ke7 {[%clk
0:00:16.6]} 72. Ne4 {[%clk 0:00:05.1]} 72... Kf7 {[%clk 0:00:16.2]} 73. Qf6+
{[%clk 0:00:05.5]} 73... Kg8 {[%clk 0:00:15]} 74. Bb3+ {[%clk 0:00:06.2]} 74...
Kh7 {[%clk 0:00:14.9]} 75. Ng5# {[%clk 0:00:06.5]} 1-0

[Event "Late-Titled-Tuesday-Blitz-May-07-2024"]
[Site "Chess.com"]
[Date "2024.05.07"]
[Round "6"]
[White "GM_dmitrij"]
[Black "KuzubovYuriy"]
[Result "1/2-1/2"]
[WhiteElo "3044"]
[BlackElo "2958"]
[TimeControl "180+1"]
[EndTime "15:08:04 PDT"]
[Termination "Game drawn by repetition"]

1. e4 {[%clk 0:03:00.9]} 1... e6 {[%clk 0:03:00.1]} 2. d4 {[%clk 0:03:00.5]}
2... d5 {[%clk 0:03:00.7]} 3. Nc3 {[%clk 0:02:58.6]} 3... Bb4 {[%clk 0:03:01]}
4. Ne2 {[%clk 0:02:58.1]} 4... dxe4 {[%clk 0:02:42.7]} 5. a3 {[%clk 0:02:58.2]}
5... Be7 {[%clk 0:02:40.2]} 6. Nxe4 {[%clk 0:02:57.8]} 6... b6 {[%clk
0:02:38.9]} 7. g3 {[%clk 0:02:40.8]} 7... Bb7 {[%clk 0:02:38.7]} 8. Bg2 {[%clk
0:02:41]} 8... Qc8 {[%clk 0:02:37.1]} 9. O-O {[%clk 0:02:37.9]} 9... Nd7 {[%clk
0:02:35.9]} 10. c4 {[%clk 0:02:35.6]} 10... Ngf6 {[%clk 0:02:35.7]} 11. N2c3
{[%clk 0:02:31.4]} 11... O-O {[%clk 0:02:31]} 12. Re1 {[%clk 0:02:16.7]} 12...
Nxe4 {[%clk 0:02:16.4]} 13. Nxe4 {[%clk 0:02:17.6]} 13... Nf6 {[%clk 0:02:16.4]}
14. Bg5 {[%clk 0:02:08.5]} 14... Nxe4 {[%clk 0:02:16.2]} 15. Bxe7 {[%clk
0:02:08.7]} 15... Re8 {[%clk 0:02:16.6]} 16. Bb4 {[%clk 0:01:45.3]} 16... Nf6
{[%clk 0:02:16]} 17. Bc3 {[%clk 0:01:41]} 17... Bxg2 {[%clk 0:02:04.4]} 18. Kxg2
{[%clk 0:01:41.9]} 18... Qb7+ {[%clk 0:02:01.6]} 19. Qf3 {[%clk 0:01:41.8]}
19... Qxf3+ {[%clk 0:01:59.5]} 20. Kxf3 {[%clk 0:01:42.7]} 20... Nd7 {[%clk
0:01:56.2]} 21. b4 {[%clk 0:01:39.7]} 21... c6 {[%clk 0:01:52.9]} 22. a4 {[%clk
0:01:33.8]} 22... a6 {[%clk 0:01:53]} 23. Rad1 {[%clk 0:01:33.2]} 23... Rac8
{[%clk 0:01:47.5]} 24. Re3 {[%clk 0:01:19.4]} 24... Kf8 {[%clk 0:01:39.2]} 25.
Bb2 {[%clk 0:01:02.1]} 25... f6 {[%clk 0:01:25.2]} 26. Ra1 {[%clk 0:00:54]}
26... Ra8 {[%clk 0:01:16.5]} 27. Rd3 {[%clk 0:00:34]} 27... Kf7 {[%clk
0:01:06.7]} 28. h3 {[%clk 0:00:22.9]} 28... Rec8 {[%clk 0:01:05.1]} 29. Rda3
{[%clk 0:00:22.6]} 29... a5 {[%clk 0:01:01]} 30. bxa5 {[%clk 0:00:18.9]} 30...
Rxa5 {[%clk 0:00:55]} 31. Bc3 {[%clk 0:00:19.2]} 31... Ra6 {[%clk 0:00:55]} 32.
Ke3 {[%clk 0:00:15.3]} 32... Rca8 {[%clk 0:00:51.8]} 33. Kd3 {[%clk 0:00:15.8]}
33... Ke7 {[%clk 0:00:48.9]} 34. f4 {[%clk 0:00:11.7]} 34... Kd6 {[%clk
0:00:47.8]} 35. g4 {[%clk 0:00:11.2]} 35... c5 {[%clk 0:00:45.8]} 36. Kc2 {[%clk
0:00:10.7]} 36... cxd4 {[%clk 0:00:43.8]} 37. Bxd4 {[%clk 0:00:11.6]} 37... Nc5
{[%clk 0:00:43.6]} 38. Bxc5+ {[%clk 0:00:10.6]} 38... Kxc5 {[%clk 0:00:43.6]}
39. Kc3 {[%clk 0:00:10.8]} 39... Rd8 {[%clk 0:00:40.7]} 40. Rb1 {[%clk 0:00:10]}
40... Kc6 {[%clk 0:00:38.2]} 41. Rb5 {[%clk 0:00:10.6]} 41... Rd1 {[%clk
0:00:37]} 42. a5 {[%clk 0:00:09.9]} 42... Rf1 {[%clk 0:00:29.6]} 43. Rxb6+
{[%clk 0:00:07.3]} 43... Rxb6 {[%clk 0:00:29.6]} 44. axb6 {[%clk 0:00:08.2]}
44... Kxb6 {[%clk 0:00:28.9]} 45. Ra8 {[%clk 0:00:07.4]} 45... Rxf4 {[%clk
0:00:27.7]} 46. Kb4 {[%clk 0:00:07.9]} 46... Rf3 {[%clk 0:00:23.9]} 47. Rg8
{[%clk 0:00:06.1]} 47... g5 {[%clk 0:00:23.6]} 48. c5+ {[%clk 0:00:05.2]} 48...
Kc6 {[%clk 0:00:23.4]} 49. Rc8+ {[%clk 0:00:05.2]} 49... Kd7 {[%clk 0:00:20.7]}
50. Rf8 {[%clk 0:00:05.7]} 50... f5 {[%clk 0:00:19.8]} 51. Rg8 {[%clk
0:00:05.1]} 51... fxg4 {[%clk 0:00:19.6]} 52. hxg4 {[%clk 0:00:06]} 52... h6
{[%clk 0:00:19.3]} 53. Kb5 {[%clk 0:00:05.9]} 53... Rb3+ {[%clk 0:00:19.1]} 54.
Kc4 {[%clk 0:00:05.5]} 54... Rb1 {[%clk 0:00:16.8]} 55. Rg6 {[%clk 0:00:04.5]}
55... Re1 {[%clk 0:00:16.7]} 56. Rxh6 {[%clk 0:00:04.4]} 56... Kc6 {[%clk
0:00:16.8]} 57. Kd4 {[%clk 0:00:04.1]} 57... Kb5 {[%clk 0:00:12.5]} 58. Rg6
{[%clk 0:00:03.7]} 58... Rd1+ {[%clk 0:00:11.6]} 59. Ke3 {[%clk 0:00:02.9]}
59... Kxc5 {[%clk 0:00:09.9]} 60. Rxg5+ {[%clk 0:00:03.1]} 60... Kd6 {[%clk
0:00:10.4]} 61. Rg7 {[%clk 0:00:03.1]} 61... Ke5 {[%clk 0:00:10.6]} 62. Rf7
{[%clk 0:00:02.8]} 62... Ra1 {[%clk 0:00:10.6]} 63. Kf2 {[%clk 0:00:02.4]} 63...
Ra4 {[%clk 0:00:09.9]} 64. Kg3 {[%clk 0:00:02.7]} 64... Ra3+ {[%clk 0:00:10.2]}
65. Kh4 {[%clk 0:00:03.4]} 65... Ra1 {[%clk 0:00:10.4]} 66. g5 {[%clk
0:00:03.7]} 66... Rh1+ {[%clk 0:00:10.6]} 67. Kg4 {[%clk 0:00:03.9]} 67... Kd4
{[%clk 0:00:10.7]} 68. Rd7+ {[%clk 0:00:02.9]} 68... Ke4 {[%clk 0:00:10.2]} 69.
g6 {[%clk 0:00:03.2]} 69... Rg1+ {[%clk 0:00:10.1]} 70. Kh5 {[%clk 0:00:04.1]}
70... e5 {[%clk 0:00:10.6]} 71. g7 {[%clk 0:00:03.6]} 71... Kf5 {[%clk
0:00:10.4]} 72. Rf7+ {[%clk 0:00:03.5]} 72... Ke6 {[%clk 0:00:10.7]} 73. Ra7
{[%clk 0:00:04.2]} 73... e4 {[%clk 0:00:10.7]} 74. Kh6 {[%clk 0:00:04.3]} 74...
e3 {[%clk 0:00:10.1]} 75. Ra3 {[%clk 0:00:03.8]} 75... e2 {[%clk 0:00:10.3]} 76.
Re3+ {[%clk 0:00:03.7]} 76... Kf6 {[%clk 0:00:10.7]} 77. Rf3+ {[%clk 0:00:04.3]}
77... Ke6 {[%clk 0:00:10.8]} 78. Re3+ {[%clk 0:00:05.2]} 78... Kf7 {[%clk
0:00:10.5]} 79. Rf3+ {[%clk 0:00:05.2]} 79... Ke6 {[%clk 0:00:10.6]} 80. Re3+
{[%clk 0:00:05.7]} 1/2-1/2

[Event "Late-Titled-Tuesday-Blitz-May-07-2024"]
[Site "Chess.com"]
[Date "2024.05.07"]
[Round "6"]
[White "kingofthenil"]
[Black "dolynachess"]
[Result "1/2-1/2"]
[WhiteElo "2840"]
[BlackElo "2543"]
[TimeControl "180+1"]
[EndTime "15:08:07 PDT"]
[Termination "Game drawn by repetition"]

1. Nf3 {[%clk 0:03:00.9]} 1... Nf6 {[%clk 0:02:47.7]} 2. g3 {[%clk 0:03:01.8]}
2... c5 {[%clk 0:02:44.8]} 3. Bg2 {[%clk 0:03:02.7]} 3... g6 {[%clk 0:02:45.2]}
4. O-O {[%clk 0:03:03.6]} 4... Bg7 {[%clk 0:02:45.8]} 5. c3 {[%clk 0:03:04.1]}
5... O-O {[%clk 0:02:46.1]} 6. d4 {[%clk 0:03:05]} 6... d5 {[%clk 0:02:46]} 7.
dxc5 {[%clk 0:03:05]} 7... Nc6 {[%clk 0:02:39.2]} 8. a4 {[%clk 0:02:56]} 8... a5
{[%clk 0:02:23.2]} 9. Ne1 {[%clk 0:02:55]} 9... e5 {[%clk 0:02:17.2]} 10. Nd3
{[%clk 0:02:52.4]} 10... Be6 {[%clk 0:02:08.2]} 11. Na3 {[%clk 0:02:50.2]} 11...
Ne4 {[%clk 0:01:49.6]} 12. Nb5 {[%clk 0:02:45.8]} 12... Qe7 {[%clk 0:01:48.9]}
13. b4 {[%clk 0:02:05.5]} 13... Nxc3 {[%clk 0:01:22.2]} 14. Nxc3 {[%clk
0:02:00.1]} 14... e4 {[%clk 0:01:22.4]} 15. Bb2 {[%clk 0:01:32.2]} 15... exd3
{[%clk 0:01:12.5]} 16. b5 {[%clk 0:01:30.5]} 16... Nb4 {[%clk 0:00:40.2]} 17.
exd3 {[%clk 0:01:30.7]} 17... Qxc5 {[%clk 0:00:40.3]} 18. Rc1 {[%clk 0:01:29]}
18... Qd4 {[%clk 0:00:30.6]} 19. Ba1 {[%clk 0:01:20.8]} 19... Qxd3 {[%clk
0:00:30]} 20. Qxd3 {[%clk 0:00:55.1]} 20... Nxd3 {[%clk 0:00:30.9]} 21. Rcd1
{[%clk 0:00:56]} 21... Nb4 {[%clk 0:00:30.4]} 22. Ne2 {[%clk 0:00:46.1]} 22...
Bxa1 {[%clk 0:00:25.5]} 23. Rxa1 {[%clk 0:00:47]} 23... Rac8 {[%clk 0:00:23.3]}
24. Nd4 {[%clk 0:00:42.2]} 24... Rc4 {[%clk 0:00:23.2]} 25. Rad1 {[%clk
0:00:42.4]} 25... Rd8 {[%clk 0:00:21.5]} 26. Rd2 {[%clk 0:00:38]} 26... Kf8
{[%clk 0:00:20.4]} 27. Re1 {[%clk 0:00:34.7]} 27... Rd6 {[%clk 0:00:20.7]} 28.
h4 {[%clk 0:00:34.1]} 28... h5 {[%clk 0:00:20.1]} 29. Bf1 {[%clk 0:00:28.2]}
29... Rc3 {[%clk 0:00:17.9]} 30. Ra1 {[%clk 0:00:20.2]} 30... Ke7 {[%clk
0:00:16.7]} 31. Bg2 {[%clk 0:00:20.5]} 31... Kf6 {[%clk 0:00:16.6]} 32. Re1
{[%clk 0:00:20.8]} 32... Rc4 {[%clk 0:00:15.2]} 33. Nf3 {[%clk 0:00:20.3]} 33...
Rc3 {[%clk 0:00:14.5]} 34. Ng5 {[%clk 0:00:20.2]} 34... Rc4 {[%clk 0:00:13.1]}
35. Nh7+ {[%clk 0:00:19.1]} 35... Kg7 {[%clk 0:00:12.6]} 36. Ng5 {[%clk
0:00:20]} 36... Kf6 {[%clk 0:00:13.3]} 37. Re3 {[%clk 0:00:19.7]} 37... Nc2
{[%clk 0:00:11.1]} 38. Rf3+ {[%clk 0:00:18.7]} 38... Ke7 {[%clk 0:00:10.1]} 39.
Rfd3 {[%clk 0:00:18.7]} 39... Nb4 {[%clk 0:00:08.5]} 40. Re3 {[%clk 0:00:18.9]}
40... Nc2 {[%clk 0:00:08.4]} 41. Ree2 {[%clk 0:00:18.4]} 41... Nd4 {[%clk
0:00:07.8]} 42. Re1 {[%clk 0:00:18.4]} 42... Rxa4 {[%clk 0:00:06.1]} 43. b6
{[%clk 0:00:07.7]} 43... Rb4 {[%clk 0:00:05.7]} 44. Red1 {[%clk 0:00:07.3]}
44... Nb3 {[%clk 0:00:04.8]} 45. Rc2 {[%clk 0:00:05.1]} 45... a4 {[%clk
0:00:05.1]} 46. Rc7+ {[%clk 0:00:05.6]} 46... Rd7 {[%clk 0:00:05.2]} 47. Rxd7+
{[%clk 0:00:05.7]} 47... Kxd7 {[%clk 0:00:06]} 48. Bxd5 {[%clk 0:00:03.5]} 48...
Bxd5 {[%clk 0:00:06.3]} 49. Rxd5+ {[%clk 0:00:04.3]} 49... Kc6 {[%clk
0:00:06.9]} 50. Rd8 {[%clk 0:00:01.7]} 50... a3 {[%clk 0:00:07.2]} 51. Ra8
{[%clk 0:00:02.6]} 51... Rxb6 {[%clk 0:00:05.1]} 52. Rxa3 {[%clk 0:00:03.2]}
52... Nc5 {[%clk 0:00:03.4]} 53. Nxf7 {[%clk 0:00:03]} 53... Rb2 {[%clk
0:00:03.9]} 54. Ne5+ {[%clk 0:00:03.2]} 54... Kd5 {[%clk 0:00:04.1]} 55. Nxg6
{[%clk 0:00:04.1]} 55... b5 {[%clk 0:00:03.3]} 56. Nf4+ {[%clk 0:00:03.7]} 56...
Kc6 {[%clk 0:00:03.9]} 57. Rc3 {[%clk 0:00:03.3]} 57... b4 {[%clk 0:00:04.8]}
58. Rxc5+ {[%clk 0:00:03.8]} 58... Kxc5 {[%clk 0:00:04.5]} 59. Nd3+ {[%clk
0:00:04.7]} 59... Kd4 {[%clk 0:00:05.2]} 60. Nxb2 {[%clk 0:00:05.5]} 60... Kc3
{[%clk 0:00:06.1]} 61. Na4+ {[%clk 0:00:05.5]} 61... Kb3 {[%clk 0:00:06.5]} 62.
Nc5+ {[%clk 0:00:03.7]} 62... Kc4 {[%clk 0:00:06.8]} 63. Ne4 {[%clk 0:00:03.2]}
63... Kd4 {[%clk 0:00:07.2]} 64. Nd2 {[%clk 0:00:03]} 64... Kc3 {[%clk
0:00:07.3]} 65. Ne4+ {[%clk 0:00:03.2]} 65... Kd4 {[%clk 0:00:07.2]} 66. Nd2
{[%clk 0:00:02.6]} 66... Kc3 {[%clk 0:00:07.4]} 67. Nf1 {[%clk 0:00:02.4]} 67...
b3 {[%clk 0:00:06.8]} 68. Ne3 {[%clk 0:00:03.3]} 68... Kd3 {[%clk 0:00:04.5]}
69. Nd1 {[%clk 0:00:02.5]} 69... Kc2 {[%clk 0:00:04.1]} 70. Ne3+ {[%clk
0:00:03]} 70... Kd3 {[%clk 0:00:04.5]} 71. Nd1 {[%clk 0:00:02]} 71... Kc2 {[%clk
0:00:04.4]} 72. Ne3+ {[%clk 0:00:02.2]} 72... Kd3 {[%clk 0:00:04.6]} 1/2-1/2

[Event "Late-Titled-Tuesday-Blitz-May-07-2024"]
[Site "Chess.com"]
[Date "2024.05.07"]
[Round "6"]
[White "Firouzja2003"]
[Black "Gareth-Bale11"]
[Result "1-0"]
[WhiteElo "3192"]
[BlackElo "2897"]
[TimeControl "180+1"]
[EndTime "15:08:09 PDT"]
[Termination "Firouzja2003 won by checkmate"]

1. e4 {[%clk 0:02:58.5]} 1... c5 {[%clk 0:02:58.4]} 2. Nf3 {[%clk 0:02:58.9]}
2... Nc6 {[%clk 0:02:57.2]} 3. Bb5 {[%clk 0:02:55.6]} 3... e6 {[%clk 0:02:56.6]}
4. O-O {[%clk 0:02:54.4]} 4... Nd4 {[%clk 0:02:55.6]} 5. Nxd4 {[%clk 0:02:52.9]}
5... cxd4 {[%clk 0:02:56.5]} 6. c3 {[%clk 0:02:53.4]} 6... a6 {[%clk 0:02:56.1]}
7. Bd3 {[%clk 0:02:53.1]} 7... Bc5 {[%clk 0:02:55.5]} 8. b4 {[%clk 0:02:53.8]}
8... Ba7 {[%clk 0:02:55.4]} 9. a4 {[%clk 0:02:54.5]} 9... d5 {[%clk 0:02:53.4]}
10. e5 {[%clk 0:02:36.1]} 10... Ne7 {[%clk 0:02:50.4]} 11. Qg4 {[%clk
0:02:35.8]} 11... dxc3 {[%clk 0:02:34]} 12. dxc3 {[%clk 0:02:36]} 12... Ng6
{[%clk 0:02:31.7]} 13. Re1 {[%clk 0:02:35.8]} 13... Bd7 {[%clk 0:02:24.1]} 14.
Nd2 {[%clk 0:02:27]} 14... Rc8 {[%clk 0:02:17.4]} 15. Ra3 {[%clk 0:02:23.2]}
15... Qh4 {[%clk 0:02:01.5]} 16. Qg3 {[%clk 0:02:14.4]} 16... Qxg3 {[%clk
0:01:49.7]} 17. hxg3 {[%clk 0:02:15.3]} 17... O-O {[%clk 0:01:45.8]} 18. Nf3
{[%clk 0:02:15.5]} 18... Rc7 {[%clk 0:01:44.3]} 19. Bxg6 {[%clk 0:01:59.9]}
19... hxg6 {[%clk 0:01:28.6]} 20. Be3 {[%clk 0:02:00.3]} 20... Bxe3 {[%clk
0:01:26.3]} 21. Rxe3 {[%clk 0:02:01.2]} 21... a5 {[%clk 0:01:23.5]} 22. b5
{[%clk 0:01:51.7]} 22... f6 {[%clk 0:01:06.3]} 23. Nd4 {[%clk 0:01:50.2]} 23...
Kf7 {[%clk 0:01:06]} 24. f4 {[%clk 0:01:49.5]} 24... b6 {[%clk 0:01:03.5]} 25.
Kf2 {[%clk 0:01:47.3]} 25... Rh8 {[%clk 0:01:01]} 26. Ra1 {[%clk 0:01:44.2]}
26... Rhc8 {[%clk 0:00:57.5]} 27. Ra3 {[%clk 0:01:31.9]} 27... Rh8 {[%clk
0:00:57]} 28. g4 {[%clk 0:01:32.1]} 28... Rh4 {[%clk 0:00:52.5]} 29. Kg3 {[%clk
0:01:30.7]} 29... Rh1 {[%clk 0:00:52]} 30. Nf3 {[%clk 0:01:07.7]} 30... Ke7
{[%clk 0:00:41.3]} 31. exf6+ {[%clk 0:00:55.9]} 31... gxf6 {[%clk 0:00:42.2]}
32. g5 {[%clk 0:00:56.3]} 32... fxg5 {[%clk 0:00:42.1]} 33. Nxg5 {[%clk
0:00:49.5]} 33... Kd6 {[%clk 0:00:34.4]} 34. Nf7+ {[%clk 0:00:48.6]} 34... Kc5
{[%clk 0:00:33.5]} 35. Ne5 {[%clk 0:00:48.5]} 35... Be8 {[%clk 0:00:33.1]} 36.
Kg4 {[%clk 0:00:45.6]} 36... Kd6 {[%clk 0:00:29.7]} 37. c4 {[%clk 0:00:18.2]}
37... dxc4 {[%clk 0:00:27.3]} 38. Rac3 {[%clk 0:00:18.8]} 38... Kd5 {[%clk
0:00:24.4]} 39. Re2 {[%clk 0:00:19.4]} 39... Rd1 {[%clk 0:00:23]} 40. Rec2
{[%clk 0:00:19.6]} 40... Rd4 {[%clk 0:00:20.8]} 41. Kg5 {[%clk 0:00:18.1]} 41...
Re4 {[%clk 0:00:16]} 42. g3 {[%clk 0:00:17.3]} 42... Rd4 {[%clk 0:00:05.7]} 43.
Kf6 {[%clk 0:00:17.2]} 43... Re4 {[%clk 0:00:04.3]} 44. Rd2+ {[%clk 0:00:13]}
44... Rd4 {[%clk 0:00:04.3]} 45. Rh2 {[%clk 0:00:13.7]} 45... Rd1 {[%clk
0:00:03.9]} 46. Rh8 {[%clk 0:00:13.2]} 46... Rc8 {[%clk 0:00:04.2]} 47. Nxc4
{[%clk 0:00:05.3]} 47... Kd4 {[%clk 0:00:04.1]} 48. Nb2 {[%clk 0:00:03.3]} 48...
Rxc3 {[%clk 0:00:01.3]} 49. Nxd1 {[%clk 0:00:03.7]} 49... Rxg3 {[%clk
0:00:01.9]} 50. Rxe8 {[%clk 0:00:03.6]} 50... Rg4 {[%clk 0:00:02.3]} 51. Rxe6
{[%clk 0:00:03.3]} 51... Rxf4+ {[%clk 0:00:02.5]} 52. Ke7 {[%clk 0:00:03.8]}
52... Kd3 {[%clk 0:00:02.5]} 53. Rxb6 {[%clk 0:00:03]} 53... Kc2 {[%clk
0:00:03]} 54. Rd6 {[%clk 0:00:02.7]} 54... Rxa4 {[%clk 0:00:02.2]} 55. b6 {[%clk
0:00:03]} 55... Rb4 {[%clk 0:00:02.3]} 56. Ne3+ {[%clk 0:00:03.9]} 56... Kb3
{[%clk 0:00:02.8]} 57. Nd5 {[%clk 0:00:04.5]} 57... Rb5 {[%clk 0:00:03.3]} 58.
Nc7 {[%clk 0:00:03.9]} 58... Rb4 {[%clk 0:00:03.4]} 59. Nd5 {[%clk 0:00:03.4]}
59... Rb5 {[%clk 0:00:03.6]} 60. Kd7 {[%clk 0:00:04]} 60... a4 {[%clk
0:00:03.9]} 61. Kc6 {[%clk 0:00:04.8]} 61... a3 {[%clk 0:00:02.4]} 62. Kxb5
{[%clk 0:00:05.3]} 62... a2 {[%clk 0:00:02.9]} 63. b7 {[%clk 0:00:05.6]} 63...
a1=Q {[%clk 0:00:03.1]} 64. b8=Q {[%clk 0:00:05.4]} 64... Kc2 {[%clk 0:00:02.3]}
65. Nb4+ {[%clk 0:00:05.3]} 65... Kc1 {[%clk 0:00:01.4]} 66. Qc7+ {[%clk
0:00:05]} 66... Kb1 {[%clk 0:00:01.8]} 67. Qc2# {[%clk 0:00:05.4]} 1-0